[Event "Charlotte Open 2024"]
[Site "Charlotte"]
[Date "2024.01.16"]
[Round "6.7"]
[White "Zapata, Alonso"]
[Black "Peatman, Carter"]
[Result "1-0"]
[ECO "B13"]
[WhiteElo "2313"]
[BlackElo "2022"]
[Annotator "TA"]
[PlyCount "197"]
[EventDate "2024.01.05"]
[EventType "swiss"]
[EventCountry "USA"]
[SourceTitle "playchess.com"]
[Source "ChessBase"]
[SourceQuality "1"]
[TimeControl "6600+10"]

{[%evp 12,197,38,25,32,33,30,28,23,27,31,30,44,39,36,39,43,4,36,37,29,29,43,28,43,31,43,43,53,53,53,7,7,7,7,7,7,7,7,7,7,7,7,7,7,7,7,7,7,0,0,0,0,0,0,-25,0,0,0,0,0,0,0,0,0,0,6,-50,0,-71,0,-8,-7,-5,0,0,0,0,0,0,21,27,28,25,125,119,146,137,227,51,51,52,52,8,8,8,11,8,8,8,8,7,8,7,8,8,8,8,8,8,8,8,8,8,8,8,8,8,8,8,8,8,8,8,8,8,8,8,8,8,8,8,8,8,8,0,8,8,8,7,8,8,8,8,8,8,8,8,8,8,8,8,51,51,51,51,29966,29967,29967,29968,29968,29969,29969,29969,29969,29969,29969,29967,29972,29973,29974,29975,29983,29980,29980,29978,29978,29977,29979,29980,29982,29983,29983,29984,29984,29985,29988,29989]} 1. e4 {[%emt 0:03:05]} c6 {[%emt 0:00:23]} 2. d4 {[%emt 0:00:10]} d5 {[%emt 0:00:06]} 3. exd5 {[%emt 0:00:05]} cxd5 {[%emt 0:00:09]} 4. Bd3 {[%emt 0:00:04]} Nc6 {[%emt 0:00:14]} 5. c3 {[%emt 0:00:07]} Nf6 {[%emt 0:00:09]} 6. Bf4 {[%emt 0:00:19]} g6 {[%emt 0:00:13]} 7. Nd2 {[%emt 0:01:13]} Bf5 {[%emt 0:00:42] is more profitable than 7...Bg7 at the moment. B13: Caro-Kann: Exchange Variation and Panov-Botvinnik Attack.} 8. Bxf5 {[%emt 0:00:21]} gxf5 {[%emt 0:00:15]} 9. Ne2 {[%emt 0:00:11]} e6 {[%emt 0:01:47] White has an edge.} 10. Nf3 {[%emt 0:01:12]} Ne4 {[%emt 0:04:29]} 11. O-O {[%emt 0:03:25]} Bd6 {[%emt 0:06:55] [#]} 12. Qc1 $146 {[%emt 0:02:08]} ({Predecessor:} 12. a4 Rg8 13. Qc1 Bxf4 14. Nxf4 Rc8 15. Qe3 Qd6 16. Nd3 Rc7 17. Rae1 Kd8 18. Re2 {1-0 Melkumyan,H (2633)-Omar,N (2364) Wch Rapid Riadh 2017 (3)}) 12... Qc7 {[%emt 0:08:00]} 13. Bxd6 {[%emt 0:00:32]} Qxd6 {[%emt 0:02:26]} 14. Qf4 {[%emt 0:00:19]} O-O-O {[%emt 0:03:42]} 15. Qxd6 {[%emt 0:00:17]} Nxd6 {[%emt 0:01:19]} 16. Nf4 {[%emt 0:00:10]} Rhg8 {[%emt 0:12:52]} 17. Rfe1 {[%emt 0:11:40]} Kb8 {[%emt 0:09:57]} 18. Kf1 {[%emt 0:00:27]} Ne4 {[%emt 0:03:24]} 19. Re2 {[%emt 0:06:25]} h6 {[%emt 0:09:45][%cal Bh7h6,Bh6h5,Bh5h4][%mdl 32]} 20. Ne1 {[%emt 0:02:11]} h5 {[%emt 0:46:43]} 21. Ned3 {[%emt 0:04:20]} (21. f3 $14) 21... h4 $1 $11 {[%emt 0:00:00]} 22. f3 {[%emt 0:00:53]} Nd6 {[%emt 0:00:00]} 23. Rd1 {[%emt 0:04:29]} Rh8 {[%emt 0:00:00]} 24. Ke1 {[%emt 0:15:51][%cal Bf1e1,Be1d2,Bd2c1,Bc1b2][%mdl 32]} Rdg8 {[%emt 0:00:00]} 25. Kd2 {[%emt 0:02:35]} Nc4+ {[%emt 0:00:00]} 26. Kc1 {[%emt 0:00:38]} Kc7 {[%emt 0:00:00]} 27. b3 {[%emt 0:00:35]} Nd6 {[%emt 0:00:00]} 28. Kb2 {[%emt 0:00:19]} Kb8 {[%emt 0:00:00]} 29. a4 {[%emt 0:08:56]} Rd8 {[%emt 0:00:00]} 30. Ne5 {[%emt 0:07:16]} Nxe5 {[%emt 0:00:00]} 31. dxe5 {[%emt 0:00:04]} Nc8 {[%emt 0:00:00]} 32. Nh3 {[%emt 0:01:42]} Rdg8 {[%emt 0:00:00]} 33. Nf4 {[%emt 0:03:54]} Rd8 {[%emt 0:00:00]} 34. Red2 {[%emt 0:01:01]} Kc7 {[%emt 0:00:00]} 35. Nh3 {[%emt 0:03:40]} Rhg8 {[%emt 0:00:00]} 36. Re2 {[%emt 0:05:40]} Rg7 {[%emt 0:00:00]} 37. Rd4 {[%emt 0:01:44]} Rh8 {[%emt 0:00:00]} 38. c4 {[%emt 0:04:01]} Ne7 {[%emt 0:00:00]} 39. Rc2 {[%emt 0:02:02]} ({White should play} 39. cxd5 $11 Nxd5 40. Nf4) 39... Kb8 {[%emt 0:00:00]} (39... dxc4 $1 $15 40. Rdxc4+ (40. Rcxc4+ Nc6 $11) 40... Kb8) 40. f4 {[%emt 0:01:14]} (40. cxd5 $11 Nxd5 41. Nf4) 40... Rg4 {[%emt 0:00:00]} ({Black should try} 40... dxc4 $17 41. bxc4 Nc6) 41. Ng5 $1 {[%emt 0:04:52]} Nc6 {[%emt 0:00:00]} 42. Rdd2 {[%emt 0:00:01]} dxc4 {[%emt 0:00:00]} 43. Nxf7 {[%emt 0:01:32]} Rf8 {[%emt 0:00:00]} 44. Ng5 {[%emt 0:00:11]} Nxe5 {[%emt 0:00:28][%mdl 64] [#] ...Nd3+ would be deadly. Deflection} 45. Nxe6 {[%emt 0:01:18]} Nd3+ {[%emt 0:00:32]} (45... Re8 $5 {[%cal Re5d3]}) 46. Ka3 $1 {[%emt 0:00:01]} Re8 {[%emt 0:01:20]} 47. Rxc4 {[%emt 0:00:03]} (47. bxc4 $2 {is the wrong capture.} Ne1 48. Nc5 Nxc2+ 49. Rxc2 Kc7 $19) 47... Rxe6 {[%emt 0:01:25]} (47... b5 $11 48. axb5 Rxe6) 48. Rxd3 {[%emt 0:00:01][%cal Rd3d8][%mdl 4096] Endgame KRR-KRR} a6 {[%emt 0:00:01]} 49. a5 {[%emt 0:00:25]} b5 {[%emt 0:00:16]} (49... Rxg2 {gets mated.} 50. Rd8+ Ka7 51. Rcc8) (49... Re8 $16 {was necessary.}) 50. axb6 $2 {[%emt 0:02:38]} ({Better is} 50. Rd8+ $18 Kb7 51. Rd7+ Kb8 52. Rc5) 50... Rxg2 $14 {[%emt 0:00:01]} 51. Rc7 $1 {[%emt 0:00:47][%cal Rd3d8]} Rxb6 {[%emt 0:00:32]} 52. Rh7 {[%emt 0:00:02][%cal Rd3d8]} (52. Rf7 $5 {[%cal Rd3d8]} Rc6 53. Rh3 $16 (53. Rxf5 Rxh2 54. Rh5 Kc7 $11)) 52... Rb7 {[%emt 0:00:14]} 53. Rxh4 {[%emt 0:00:06]} Rf2 $1 {[%emt 0:00:09]} 54. Rh6 {[%emt 0:00:12]} Rxf4 {[%emt 0:00:21]} 55. Rxa6 {[%emt 0:00:06]} Rh4 {[%emt 0:00:05]} 56. Rd8+ {[%emt 0:00:21]} Kc7 {[%emt 0:00:01]} 57. Rf8 {[%emt 0:00:02]} Rb5 {[%emt 0:00:12]} 58. Rf7+ {[%emt 0:00:19]} Kb8 {[%emt 0:00:04]} 59. Re6 {[%emt 0:00:13][%cal Re6e8]} Ra5+ {[%emt 0:00:12]} 60. Kb2 {[%emt 0:00:01][%cal Re6e8]} Rc5 {[%emt 0:00:01]} 61. Re8+ {[%emt 0:00:10]} Rc8 {[%emt 0:00:02]} 62. Ree7 {[%emt 0:00:03]} Rxh2+ {[%emt 0:00:01]} 63. Ka3 {[%emt 0:00:00]} Rc6 {[%emt 0:00:41]} 64. Rf8+ {[%emt 0:01:30]} Rc8 65. Rxf5 Rc6 {[%emt 0:00:24]} 66. Rf8+ $1 {[%emt 0:00:00]} Rc8 {[%emt 0:00:01]} 67. Rff7 {[%emt 0:00:00] White wants to mate with Rb7+.} Rc6 {[%emt 0:00:07]} 68. Re8+ {[%emt 0:00:00]} Rc8 {[%emt 0:00:01]} 69. Re4 {[%emt 0:00:00]} Rc6 {[%emt 0:00:05]} 70. Rb4+ {[%emt 0:00:13]} Kc8 {[%emt 0:00:05]} 71. Ra4 {[%emt 0:00:04][%cal Ra4a8]} Rc7 {[%emt 0:00:33]} 72. Rf8+ {[%emt 0:00:12]} Kd7 {[%emt 0:00:25]} 73. Rf7+ {[%emt 0:00:18]} Kc8 {[%emt 0:00:04]} 74. Ra8+ {[%emt 0:00:12]} Kb7 {[%emt 0:00:01]} 75. Rff8 {[%emt 0:00:00]} Rh4 {[%emt 0:00:25]} 76. Rfb8+ {[%emt 0:00:14]} Kc6 {[%emt 0:00:01]} 77. Ra6+ {[%emt 0:00:04]} Kd7 {[%emt 0:00:02]} 78. Rg8 {[%emt 0:00:03]} Rh1 {[%emt 0:00:16] And now ...Ra1+ would win.} 79. Ka4 {[%emt 0:00:54] b4 is the strong threat.} Ra1+ {[%emt 0:00:04]} 80. Kb5 {[%emt 0:01:07] Intending Rg7+ and mate.} Rxa6 {[%emt 0:00:35]} 81. Kxa6 $11 {[%emt 0:00:00] White threatens Rg7+ and mate. KR-KR} Rc3 {[%emt 0:00:07]} 82. b4 {[%emt 0:00:00][%cal Bb3b4,Bb4b5,Bb5b6,Bb6b7][%mdl 32] b5 would kill now.} Kc7 {[%emt 0:00:04]} 83. Rg7+ {[%emt 0:00:00]} Kc8 $2 {[%emt 0:00:08][%mdl 8192] Loses the game.} (83... Kb8 $14) 84. Kb6 {[%emt 0:00:00] White mates.} Rh3 {[%emt 0:00:16]} 85. Rg8+ {[%emt 0:00:00]} Kd7 {[%emt 0:00:00]} 86. b5 {[%emt 0:00:00]} Rb3 {[%emt 0:00:24]} 87. Ra8 {[%emt 0:00:50]} Rb1 {[%emt 0:00:06]} 88. Rh8 {[%emt 0:00:09]} Rb2 {[%emt 0:00:02]} 89. Rh5 {[%emt 0:00:09]} Ra2 {[%emt 0:00:19]} 90. Kb7 {[%emt 0:00:01]} Ra3 {[%emt 0:00:14]} 91. b6 {[%emt 0:00:01]} Kd8 {[%emt 0:00:03]} 92. Rd5+ {[%emt 0:00:02]} Ke7 {[%emt 0:00:01]} 93. Kb8 {[%emt 0:00:10]} Ke6 {[%emt 0:00:14]} 94. Rd4 {[%emt 0:00:05]} Rb3 {[%emt 0:00:01]} 95. b7 {[%emt 0:00:01]} Ke7 {[%emt 0:00:02]} 96. Kc7 {[%emt 0:00:05]} Rc3+ {[%emt 0:00:02] [#]} 97. Kb6 $1 {[%emt 0:00:01]} Rb3+ {[%emt 0:00:01]} 98. Kc6 {[%emt 0:00:01]} Ke8 {[%emt 0:00:16]} 99. Rd5 {[%emt 0:00:02] Weighted Error Value: White=0.14 (very precise) /Black=0.12 (very precise)} 1-0

[Event "Charlotte Open 2024"]
[Site "Charlotte"]
[Date "2024.01.16"]
[Round "6.8"]
[White "Fox, William Daniel"]
[Black "Belenkaya, Dina"]
[Result "1/2-1/2"]
[ECO "D24"]
[WhiteElo "1908"]
[BlackElo "2202"]
[Annotator "NA RC"]
[PlyCount "175"]
[EventDate "2024.01.05"]
[EventType "swiss"]
[EventCountry "USA"]
[SourceTitle "playchess.com"]
[Source "ChessBase"]
[SourceQuality "1"]
[TimeControl "6600+10"]

1. d4 {[%emt 0:00:08]} d5 {[%emt 0:08:54]} 2. c4 {[%emt 0:00:20]} dxc4 {[%emt 0:00:07]} 3. e3 {[%emt 0:00:21]} Nf6 {[%emt 0:05:15]} 4. Bxc4 {[%emt 0:00:17]} a6 {[%emt 0:00:09]} 5. a4 {[%emt 0:00:23]} Nc6 {[%emt 0:05:15]} 6. Nf3 {[%emt 0:02:06]} Bg4 {[%emt 0:02:34]} 7. O-O {[%emt 0:02:43]} e6 {[%emt 0:00:17]} 8. h3 {[%emt 0:02:31]} Bh5 {[%emt 0:00:08]} 9. Nc3 {[%emt 0:00:37]} Bd6 {[%emt 0:01:12]} 10. d5 {[%emt 0:15:16]} Ne5 {[%emt 0:02:53]} 11. Be2 {[%emt 0:01:40]} Nxf3+ {[%emt 0:05:19]} 12. Bxf3 {[%emt 0:00:21]} Bxf3 {[%emt 0:00:52]} 13. Qxf3 {[%emt 0:00:08]} exd5 {[%emt 0:01:38]} 14. Rd1 {[%emt 0:01:08]} c6 {[%emt 0:00:42]} 15. e4 {[%emt 0:05:22]} dxe4 {[%emt 0:10:58]} 16. Nxe4 {[%emt 0:00:58]} Nxe4 {[%emt 0:00:31]} 17. Bf4 {[%emt 0:03:02]} f5 {[%emt 0:09:37]} 18. Bxd6 {[%emt 0:06:15]} Nxd6 {[%emt 0:00:15]} 19. Qg3 {[%emt 0:04:10]} O-O {[%emt 0:01:21]} 20. Rxd6 {[%emt 0:00:17]} Qc7 {[%emt 0:04:10]} 21. Rad1 {[%emt 0:01:17]} Rae8 {[%emt 0:02:24]} 22. h4 {[%emt 0:09:43]} f4 {[%emt 0:08:42]} 23. Qc3 {[%emt 0:01:39]} Qf7 {[%emt 0:02:18]} 24. Qb4 {[%emt 0:08:49]} f3 {[%emt 0:04:44]} 25. Rd7 {[%emt 0:03:19]} Qg6 {[%emt 0:02:48]} 26. Qc4+ {[%emt 0:01:19]} Kh8 {[%emt 0:00:29]} 27. g3 {[%emt 0:00:21]} b5 {[%emt 0:07:25]} 28. axb5 {[%emt 0:01:14]} axb5 {[%emt 0:00:13]} 29. Qc5 {[%emt 0:07:25]} h6 {[%emt 0:01:50]} 30. R7d6 {[%emt 0:14:47]} Rf6 {[%emt 0:10:14]} 31. Qxc6 {[%emt 0:00:31]} Rxd6 {[%emt 0:00:57]} 32. Rxd6 {[%emt 0:01:55]} Re1+ {[%emt 0:02:06]} 33. Kh2 {[%emt 0:00:16]} Qf5 {[%emt 0:01:07]} 34. Rd8+ {[%emt 0:04:06]} Kh7 {[%emt 0:00:03]} 35. Qc8 {[%emt 0:00:11]} Qxc8 {[%emt 0:02:12]} 36. Rxc8 {[%emt 0:00:05]} Re2 {[%emt 0:00:16]} 37. g4 {[%emt 0:00:43]} Rxf2+ {[%emt 0:00:13]} 38. Kg3 {[%emt 0:00:04]} Rxb2 {[%emt 0:00:08]} 39. Kxf3 {[%emt 0:00:07]} b4 {[%emt 0:01:20]} 40. Rb8 {[%emt 0:00:06]} b3 {[%emt 0:00:21]} 41. Rb7 {[%emt 0:00:43]} Rb1 {[%emt 0:00:26]} 42. Kg2 {[%emt 0:02:22]} Kg6 {[%emt 0:00:20]} 43. Rb6+ {[%emt 0:00:17]} Kf7 {[%emt 0:00:01]} 44. Rb7+ {[%emt 0:00:14]} Kf6 {[%emt 0:00:01]} 45. Rb6+ {[%emt 0:00:05]} Ke5 {[%emt 0:00:02]} 46. Rb4 {[%emt 0:00:07]} Kd5 {[%emt 0:00:06]} 47. Rb7 {[%emt 0:02:42]} Rb2+ {[%emt 0:00:16]} 48. Kg3 {[%emt 0:00:18]} Rb1 {[%emt 0:00:16]} 49. Kg2 {[%emt 0:00:03]} Kc6 {[%emt 0:00:45]} 50. Rb8 {[%emt 0:00:25]} Kc7 {[%emt 0:00:49]} 51. Rb4 {[%emt 0:00:06]} Rb2+ {[%emt 0:00:14]} 52. Kg3 {[%emt 0:00:05]} Kc6 {[%emt 0:00:20]} 53. Rb8 {[%emt 0:00:09]} Kc5 {[%emt 0:00:48]} 54. Rb7 {[%emt 0:00:25]} Rb1 {[%emt 0:00:31]} 55. Kg2 {[%emt 0:00:07]} g6 {[%emt 0:00:09]} 56. Rb8 {[%emt 0:00:09]} Kc4 {[%emt 0:00:02]} 57. Rc8+ {[%emt 0:01:30]} Kd3 {[%emt 0:00:03]} 58. Rb8 {[%emt 0:00:13]} Ke3 {[%emt 0:00:03]} 59. Rb6 {[%emt 0:00:19]} Kd3 {[%emt 0:01:03]} 60. Rb7 {[%emt 0:01:35]} Rb2+ {[%emt 0:00:22]} 61. Kg3 {[%emt 0:00:03]} Kc2 {[%emt 0:00:05]} 62. Rc7+ {[%emt 0:00:17]} Kd1 {[%emt 0:00:01]} 63. Rb7 {[%emt 0:00:20]} Ke1 {[%emt 0:00:09]} 64. Rb6 {[%emt 0:01:03]} Kf1 {[%emt 0:00:02]} 65. Rxg6 {[%emt 0:00:07]} Rg2+ {[%emt 0:00:03]} 66. Kh3 {[%emt 0:00:03]} b2 {[%emt 0:01:27]} 67. Rf6+ {[%emt 0:00:15]} Rf2 {[%emt 0:00:24]} 68. Rb6 {[%emt 0:00:06]} Rf3+ {[%emt 0:00:15]} 69. Kh2 {[%emt 0:00:07]} Rf2+ {[%emt 0:00:08]} 70. Kg3 {[%emt 0:00:05]} Ke1 {[%emt 0:00:09]} 71. g5 {[%emt 0:00:32]} h5 {[%emt 0:00:21]} 72. g6 {[%emt 0:00:11]} Rf6 {[%emt 0:00:04]} 73. Rxb2 {[%emt 0:00:09]} Rxg6+ {[%emt 0:00:02]} 74. Kh3 {[%emt 0:00:04]} Kf1 {[%emt 0:00:07]} 75. Rb1+ {[%emt 0:00:03]} Kf2 {[%emt 0:00:01]} 76. Rb2+ {[%emt 0:00:00]} Kf3 {[%emt 0:00:01]} 77. Rb3+ {[%emt 0:00:01]} Kf4 {[%emt 0:00:01]} 78. Rb4+ {[%emt 0:00:01]} Kf5 {[%emt 0:00:02]} 79. Rb5+ {[%emt 0:00:00]} Kf6 {[%emt 0:00:01]} 80. Rb6+ {[%emt 0:00:02]} Kg7 {[%emt 0:00:01]} 81. Rxg6+ {[%emt 0:00:02]} Kxg6 {[%emt 0:00:01]} 82. Kh2 {[%emt 0:00:01]} Kf5 {[%emt 0:00:01]} 83. Kh1 {[%emt 0:00:01]} Kg4 {[%emt 0:00:00]} 84. Kg1 {[%emt 0:00:01]} Kg3 {[%emt 0:00:01]} 85. Kh1 {[%emt 0:00:01]} Kh3 {[%emt 0:00:01]} 86. Kg1 {[%emt 0:00:01]} Kg3 {[%emt 0:00:01]} 87. Kh1 {[%emt 0:00:01]} Kh3 {[%emt 0:00:01]} 88. Kg1 {[%emt 0:00:00]} 1/2-1/2

[Event "Charlotte Open 2024"]
[Site "Charlotte"]
[Date "2024.01.16"]
[Round "6.9"]
[White "Botez, Andrea"]
[Black "Daniels, Noah M"]
[Result "1/2-1/2"]
[ECO "D00"]
[WhiteElo "1709"]
[BlackElo "1764"]
[Annotator "NA RC"]
[PlyCount "83"]
[EventDate "2024.01.05"]
[EventType "swiss"]
[EventCountry "USA"]
[SourceTitle "playchess.com"]
[Source "ChessBase"]
[SourceQuality "1"]
[TimeControl "6600+10"]

1. d4 {[%emt 0:13:25]} d5 {[%emt 0:16:14]} 2. Nc3 {[%emt 0:00:19]} c6 {[%emt 0:00:58]} 3. Bf4 {[%emt 0:02:13]} Nf6 {[%emt 0:01:50]} 4. e3 {[%emt 0:00:13]} Bf5 {[%emt 0:00:55]} 5. Bd3 {[%emt 0:01:42]} Bxd3 {[%emt 0:01:46]} 6. Qxd3 {[%emt 0:00:15]} e6 {[%emt 0:00:05]} 7. Nf3 {[%emt 0:07:48]} Bd6 {[%emt 0:00:09]} 8. O-O {[%emt 0:00:39]} Qc7 {[%emt 0:04:10]} 9. Bxd6 {[%emt 0:03:21]} Qxd6 {[%emt 0:00:39]} 10. e4 {[%emt 0:00:31]} dxe4 {[%emt 0:01:48]} 11. Nxe4 {[%emt 0:00:04]} Nxe4 {[%emt 0:01:41]} 12. Qxe4 {[%emt 0:00:04]} Nd7 {[%emt 0:00:07]} 13. Rad1 {[%emt 0:04:07]} O-O {[%emt 0:09:11]} 14. c4 {[%emt 0:02:17]} Rad8 {[%emt 0:03:48]} 15. Rfe1 {[%emt 0:03:44]} Nf6 {[%emt 0:03:25]} 16. Qe5 {[%emt 0:07:14]} Qxe5 {[%emt 0:02:46]} 17. dxe5 {[%emt 0:08:16]} Nd7 {[%emt 0:08:27]} 18. Kf1 {[%emt 0:11:53]} Rfe8 {[%emt 0:03:35]} 19. Nd4 {[%emt 0:02:21]} Nb6 {[%emt 0:02:19]} 20. b3 {[%emt 0:00:20]} Rd7 {[%emt 0:01:02]} 21. Ke2 {[%emt 0:00:51]} Red8 {[%emt 0:00:25]} 22. Nf3 {[%emt 0:02:11]} Kf8 {[%emt 0:01:35]} 23. Ng5 {[%emt 0:01:30]} Ke7 {[%emt 0:47:05]} 24. f4 {[%emt 0:38:52]} Rxd1 {[%emt 0:00:00]} 25. Rxd1 {[%emt 0:00:00]} Rxd1 {[%emt 0:00:00]} 26. Kxd1 {[%emt 0:00:00]} h6 {[%emt 0:00:00]} 27. Ne4 {[%emt 0:00:00]} Nc8 {[%emt 0:00:00]} 28. c5 {[%emt 0:00:00]} Kd7 {[%emt 0:00:50]} 29. Nd6 {[%emt 0:00:00]} b6 {[%emt 0:00:00]} 30. Nxc8 {[%emt 0:00:00]} Kxc8 {[%emt 0:00:00]} 31. cxb6 {[%emt 0:00:00]} axb6 {[%emt 0:00:00]} 32. Kd2 {[%emt 0:00:00]} Kb7 {[%emt 0:00:00]} 33. Kc3 {[%emt 0:00:00]} Ka6 {[%emt 0:00:00]} 34. Kc4 {[%emt 0:00:00]} Ka5 {[%emt 0:01:00]} 35. a4 {[%emt 0:00:00]} h5 {[%emt 0:00:00]} 36. g3 {[%emt 0:00:00]} g6 {[%emt 0:00:00]} 37. h3 {[%emt 0:00:00]} c5 {[%emt 0:00:00]} 38. g4 {[%emt 0:00:00]} h4 {[%emt 0:00:00]} 39. g5 {[%emt 0:00:00]} Ka6 {[%emt 0:00:50]} 40. b4 {[%emt 0:00:00]} cxb4 {[%emt 0:00:00]} 41. Kxb4 {[%emt 0:00:00]} Kb7 {[%emt 0:00:00]} 42. Kc3 {[%emt 0:00:26]} 1/2-1/2

[Event "Charlotte Open 2024"]
[Site "Charlotte"]
[Date "2024.01.16"]
[Round "6.11"]
[White "Rutten, Alexander"]
[Black "Vanapalli, Vishnu"]
[Result "0-1"]
[ECO "C77"]
[WhiteElo "2142"]
[BlackElo "2276"]
[Annotator "NA RC"]
[PlyCount "80"]
[EventDate "2024.01.05"]
[EventType "swiss"]
[EventCountry "USA"]
[SourceTitle "playchess.com"]
[Source "ChessBase"]
[SourceQuality "1"]
[TimeControl "6600+10"]

1. e4 {[%emt 0:00:04]} e5 {[%emt 0:01:34]} 2. Nf3 {[%emt 0:00:26]} Nc6 {[%emt 0:00:07]} 3. Bb5 {[%emt 0:00:38]} a6 {[%emt 0:00:08]} 4. Ba4 {[%emt 0:00:03]} Nf6 {[%emt 0:00:58]} 5. Qe2 {[%emt 0:00:58]} b5 {[%emt 0:04:17]} 6. Bb3 {[%emt 0:00:17]} Bc5 {[%emt 0:00:30]} 7. c3 {[%emt 0:00:12]} d6 {[%emt 0:06:43]} 8. O-O {[%emt 0:03:08]} O-O {[%emt 0:02:04]} 9. Rd1 {[%emt 0:02:52]} Re8 {[%emt 0:02:18]} 10. d3 {[%emt 0:02:11]} h6 {[%emt 0:00:41]} 11. h3 {[%emt 0:07:26]} Bb6 {[%emt 0:01:04]} 12. Nbd2 {[%emt 0:01:54]} Ne7 {[%emt 0:03:36]} 13. Nf1 {[%emt 0:08:21]} Ng6 {[%emt 0:00:17]} 14. a4 {[%emt 0:01:35]} Rb8 {[%emt 0:06:27]} 15. axb5 {[%emt 0:02:28]} axb5 {[%emt 0:02:27]} 16. Be3 {[%emt 0:02:11]} c5 {[%emt 0:02:37]} 17. c4 {[%emt 0:13:27]} Nh5 {[%emt 0:26:24]} 18. N1h2 {[%emt 0:26:30]} Nhf4 {[%emt 0:15:35]} 19. Qd2 {[%emt 0:02:34]} f5 {[%emt 0:02:07]} 20. cxb5+ {[%emt 0:05:02]} Kh7 {[%emt 0:00:45]} 21. Bc4 {[%emt 0:06:54]} Nxh3+ {[%emt 0:03:29]} 22. gxh3 {[%emt 0:00:30]} f4 {[%emt 0:00:06]} 23. Bxc5 {[%emt 0:06:27]} Bxc5 {[%emt 0:12:27]} 24. Kf1 {[%emt 0:01:41]} Bxh3+ {[%emt 0:01:45]} 25. Ke2 {[%emt 0:00:06]} Be6 {[%emt 0:04:44]} 26. Qc2 {[%emt 0:03:52]} Qd7 {[%emt 0:01:53]} 27. Nf1 {[%emt 0:04:00]} Bg4 {[%emt 0:03:09]} 28. N1d2 {[%emt 0:00:49]} Nh4 {[%emt 0:00:46]} 29. Rh1 {[%emt 0:00:48]} g5 {[%emt 0:00:34]} 30. Rag1 {[%emt 0:01:25]} Bb4 {[%emt 0:01:55]} 31. Rxh4 {[%emt 0:05:04]} gxh4 {[%emt 0:00:02]} 32. Rh1 {[%emt 0:00:36]} h3 {[%emt 0:00:18]} 33. Nf1 {[%emt 0:00:36]} Re7 {[%emt 0:03:53]} 34. N1h2 {[%emt 0:00:14]} Bh5 {[%emt 0:00:00]} 35. Ra1 {[%emt 0:00:28]} Rg7 {[%emt 0:00:00]} 36. Qb3 {[%emt 0:00:11]} Bc5 {[%emt 0:00:00]} 37. Be6 {[%emt 0:00:07]} Qxb5 {[%emt 0:00:00]} 38. Qxb5 {[%emt 0:00:08]} Rxb5 {[%emt 0:00:00]} 39. b3 {[%emt 0:00:14]} Rg2 {[%emt 0:00:00]} 40. Bf5+ {[%emt 0:00:12]} Kg7 {[%emt 0:01:10]} 0-1

[Event "Charlotte Open 2024"]
[Site "Charlotte"]
[Date "2024.01.16"]
[Round "6.12"]
[White "Wofford, Matthew"]
[Black "Kogen, Jonathan"]
[Result "1/2-1/2"]
[ECO "B66"]
[WhiteElo "1993"]
[BlackElo "2220"]
[Annotator "RC"]
[PlyCount "63"]
[EventDate "2024.01.05"]
[EventType "swiss"]
[EventCountry "USA"]
[SourceTitle "playchess.com"]
[Source "ChessBase"]
[SourceQuality "1"]
[TimeControl "6600+10"]

1. e4 {[%emt 0:00:01]} c5 {[%emt 0:02:54]} 2. Nf3 {[%emt 0:00:03]} d6 {[%emt 0:00:07]} 3. d4 {[%emt 0:00:04]} cxd4 {[%emt 0:00:06]} 4. Nxd4 {[%emt 0:00:03]} Nf6 {[%emt 0:00:09]} 5. Nc3 {[%emt 0:00:04]} Nc6 {[%emt 0:00:18]} 6. Bg5 {[%emt 0:01:12]} e6 {[%emt 0:00:27]} 7. Qd2 {[%emt 0:00:47]} Qb6 {[%emt 0:00:29]} 8. Nb3 {[%emt 0:04:11]} a6 {[%emt 0:00:49]} 9. O-O-O {[%emt 0:01:23]} Qc7 {[%emt 0:00:31]} 10. f3 {[%emt 0:03:03]} Rb8 {[%emt 0:00:59]} 11. g4 {[%emt 0:03:32]} b5 {[%emt 0:02:48]} 12. Bf4 {[%emt 0:05:36]} Ne5 {[%emt 0:11:30]} 13. Be2 {[%emt 0:14:05]} Nc4 {[%emt 0:13:15]} 14. Bxc4 {[%emt 0:09:22]} bxc4 {[%emt 0:00:09]} 15. e5 {[%emt 0:00:45]} Nd7 {[%emt 0:12:23]} 16. exd6 {[%emt 0:02:32]} Qb7 {[%emt 0:01:49]} 17. Rhe1 {[%emt 0:04:06]} cxb3 {[%emt 0:00:13]} 18. axb3 {[%emt 0:01:10]} g6 {[%emt 0:16:26]} 19. Qd4 {[%emt 0:07:18]} Qb4 {[%emt 0:08:55]} 20. Qxh8 {[%emt 0:08:46]} Qxf4+ {[%emt 0:00:05]} 21. Kb1 {[%emt 0:00:06]} Bb7 {[%emt 0:03:27]} 22. h4 {[%emt 0:05:11]} Bxf3 {[%emt 0:03:47]} 23. Rf1 {[%emt 0:01:49]} Qxg4 {[%emt 0:10:51]} 24. Rd3 {[%emt 0:01:41]} Be2 {[%emt 0:02:55]} 25. Nxe2 {[%emt 0:03:52]} Qxe2 {[%emt 0:00:02]} 26. Rdf3 {[%emt 0:00:50]} Ne5 {[%emt 0:03:50]} 27. R3f2 {[%emt 0:00:49]} Qe3 {[%emt 0:01:26]} 28. Rxf7 {[%emt 0:05:03]} Nxf7 {[%emt 0:00:35]} 29. d7+ {[%emt 0:00:12]} Kxd7 {[%emt 0:04:36]} 30. Rxf7+ {[%emt 0:00:43]} Kc6 {[%emt 0:00:33]} 31. Rxf8 {[%emt 0:00:31]} Qe1+ {[%emt 0:01:19]} 32. Ka2 {[%emt 0:00:05]} 1/2-1/2